Cogmind - Beta 16.1 @@@ ROGUE MODE // 2026.02.12 @ 23:10:19 Player: TheSkyeDoctor Result: Destroyed by H-66 Slayer with Gauss Rifle Performance ------------- Evolutions (5) 2500 Regions Visited (4) 800 Robots Destroyed (0) 0 Value Destroyed (0) 0 Prototype IDs (0) 0 Alien Tech Used (0) 0 Bonus (491) 491 TOTAL SCORE: 3791 Bonus ------- Pacifist 491 Cogmind --------- Core Integrity 0/1000 Matter 288/300 Energy 99/100 System Corruption 2% Temperature Cool (0) Movement Core (50) Location -5/Factory Parts ------- > --- POWER (2) -------- (None) > --- PROPULSION (4) --- (None) > --- UTILITY (8) ------ (None) > --- WEAPON (3) ------- (None) > --- INVENTORY (5) ---- Ion Engine Fission Core Hover Unit Drone Bay (2/2) Assault Rifle Peak State ------------ > --- POWER ------------ Fission Core > --- PROPULSION ------- Flight Unit Flight Unit Flight Unit > --- UTILITY ---------- Drone Bay > --- WEAPON ----------- (None) > --- INVENTORY -------- Ion Engine Hover Unit Assault Rifle [Rating: 13] Favorites ----------- Power Fission Core Engine Ion Engine Power Core Fission Core Propulsion Flight Unit Treads Light Treads Wheel Wheel Flight Unit Flight Unit Utility Small Storage Unit Device Drone Bay Storage Small Storage Unit Weapon Overtuned Pulse Rifle Energy Gun Overtuned Pulse Rifle Ballistic Gun Assault Rifle Build | -11 -10 -10 -7 -5 ------- Run | Yrd Mat Sub Scr Fac Slots Evolved 10 | . . . . 10 Power 1 | . . . . 1 Propulsion 2 | . . . . 2 Utility 6 | . . . . 6 Weapon 1 | . . . . 1 Parts Attached 15 | 8 2 . 2 3 Power 2 | 1 . . 1 . Engine 1 | 1 . . . . Core 1 | . . . 1 . Reactor . | . . . . . Propulsion 8 | 4 2 . . 2 Treads 2 | 2 . . . . Leg . | . . . . . Wheel 2 | 2 . . . . Hover . | . . . . . Flight 4 | . 2 . . 2 Utility 2 | 1 . . . 1 Device 1 | . . . . 1 Storage 1 | 1 . . . . Processor . | . . . . . Hackware . | . . . . . Protection . | . . . . . Artifact . | . . . . . Weapon 3 | 2 . . 1 . Energy Gun 2 | 1 . . 1 . Energy Cannon . | . . . . . Ballistic Gun 1 | 1 . . . . Ballistic Cannon . | . . . . . Launcher . | . . . . . Special Weapon . | . . . . . Impact Weapon . | . . . . . Slashing Weapon . | . . . . . Piercing Weapon . | . . . . . Special Melee Weapon . | . . . . . Unidentified Prototypes . | . . . . . Parts Lost 5 | . . . . 5 Power . | . . . . . Propulsion 4 | . . . . 4 Utility . | . . . . . Weapon 1 | . . . . 1 Highest Loss Streak 3 | . . . . 3 To Critical Strikes . | . . . . . Average Backups 4 | 2 1 5 5 4 Power 1 | 1 1 1 1 1 Propulsion 2 | . . 3 3 2 Utility . | . . . . . Weapon . | . . 1 1 1 Tool/Special . | . . . . . Unused Backups 2 | . . . . 2 Power 1 | . . . . 1 Propulsion 1 | . . . . 1 Utility . | . . . . . Weapon . | . . . . . Tool/Special . | . . . . . Average Slot Usage (%) 52 | . 84 57 54 16 Engine 4 | . 14 14 2 . Core 7 | . . . 11 3 Treads 3 | . 26 . . . Flight 21 | . 1 28 28 9 Storage 1 | . 14 . . . Energy Gun 10 | . 14 14 11 2 Ballistic Gun 1 | . 13 . . . Peak Build Rating 13 | 6 6 4 10 13 Average Rating 7 | 3 5 4 8 6 On Entrance 4 | . 6 4 4 10 Avg Prop Armor Cover (%) . | . . . . . Naked Turns 50 | . . . . 50 Heaviest Build 14 | 14 14 7 13 13 Greatest Support 40 | 40 40 8 8 12 Greatest Overweight (x) 3 | . . . 1 3 Average Overweight (x) . | . . . . . Largest Inventory Capacity 8 | 8 8 5 5 5 Average Capacity 5 | 6 7 5 5 5 Most Carried 7 | 5 7 5 5 5 Average Carried 4 | 2 1 5 5 4 Final Capacity 8 | 8 5 5 5 5 Final Carried 5 | 1 5 5 5 5 Class Distribution -------------------- 100% | Mutant Dominant Class ---------------- Mutant | -10/Materials Mutant | -10/Subcaves Mutant | -7/Scraptown Mutant | -5/Factory Resources | -11 -10 -10 -7 -5 ----------- Run | Yrd Mat Sub Scr Fac Matter Collected 296 | 210 86 . . . Remotely . | . . . . . Salvage Created . | . . . . . Parts . | . . . . . Haulers Intercepted . | . . . . . Recyclers Shooed . | . . . . . Parts Field Recycled . | . . . . . Retrieved Matter . | . . . . . Parts Self-Destructed . | . . . . . Prevented . | . . . . . Parts Restored . | . . . . . Kills | -11 -10 -10 -7 -5 ------- Run | Yrd Mat Sub Scr Fac Combat Hostiles Destroyed . | . . . . . Classes Destroyed . | . . . . . Best Kill Streak . | . . . . . Combat Bots Only . | . . . . . Max Kills in Single Turn . | . . . . . Gunslinging . | . . . . . Exploded . | . . . . . Melee . | . . . . . Uniques/NPCs Destroyed . | . . . . . Combat | -11 -10 -10 -7 -5 -------- Run | Yrd Mat Sub Scr Fac Hostile Shots Fired 136 | . 14 . . 122 Missed 51 | . 5 . . 46 Hits 85 | . 9 . . 76 Projectile 85 | . 9 . . 76 Critical Strikes 1 | . . . . 1 Damage Taken 1300 | . 97 . . 1203 Core 1043 | . 33 . . 1010 Absorbed by Shields 61 | . . . . 61 Core Remaining (%) 93 | 100 . . 86 . Volleys Fired 1 | . . . . 1 Largest 1 | . . . . 1 Hottest 80 | . . . . 80 Shots Fired . | . . . . . Gun . | . . . . . Cannon . | . . . . . Launcher . | . . . . . Special . | . . . . . Kinetic . | . . . . . Thermal . | . . . . . Explosive . | . . . . . Electromagnetic . | . . . . . Robot Hit Streak . | . . . . . Robot Miss Streak . | . . . . . Penetration Max . | . . . . . Secondary Targets . | . . . . . Shots Hit Robots . | . . . . . Core Hits 2 | . 1 . . 1 Critical Kills . | . . . . . Critical Parts Destroyed . | . . . . . Critical Strikes . | . . . . . Melee Attacks . | . . . . . Impact . | . . . . . Slashing . | . . . . . Piercing . | . . . . . Sneak Attacks . | . . . . . Combat Hostiles . | . . . . . Follow-up Attacks . | . . . . . Damage Inflicted 7 | . 1 . . 6 Guns . | . . . . . Cannons . | . . . . . Explosions . | . . . . . Melee . | . . . . . Ramming 7 | . 1 . . 6 Kinetic . | . . . . . Thermal . | . . . . . Explosive . | . . . . . Electromagnetic . | . . . . . Impact . | . . . . . Slashing . | . . . . . Piercing . | . . . . . Highest Corruption 2 | . . . . 2 Average Corruption 2 | . . . . 2 Corruption Purged . | . . . . . Corruption Blocked . | . . . . . Overload Shots . | . . . . . Overflow Damage . | . . . . . Projectiles . | . . . . . Explosions . | . . . . . Melee . | . . . . . Knockbacks . | . . . . . Impact . | . . . . . Kinetic . | . . . . . Secondary . | . . . . . Self-Inflicted Damage 1 | . . . . 1 Shots . | . . . . . Rammed 5 | . 1 . . 4 Targets Rammed 5 | . 1 . . 4 Kicked . | . . . . . Crushed . | . . . . . Highest Temperature 50 | . . . . 50 Average Temperature 35 | . . . . 35 Received Heat Transfer 129 | . 54 . . 75 Siege Activations . | . . . . . Martial Activations . | . . . . . Shielding Activations . | . . . . . Robots Disrupted . | . . . . . Combat Hostiles . | . . . . . Robots Corrupted . | . . . . . Combat Hostiles . | . . . . . Parts Fried . | . . . . . Impact Corruptions . | . . . . . Robots Melted . | . . . . . Combat Hostiles . | . . . . . Parts Melted . | . . . . . Heat Transferred . | . . . . . Parts Sabotaged . | . . . . . Parts Stolen . | . . . . . Parts Stripped . | . . . . . Power Chain Reactions . | . . . . . Alert | -11 -10 -10 -7 -5 ------- Run | Yrd Mat Sub Scr Fac Maximum Alert Level . | . . . . . Low Security (%) 100 | 100 100 . . 100 Level 1 . | . . . . . Level 2 . | . . . . . Level 3 . | . . . . . Level 4 . | . . . . . Level 5 . | . . . . . High Security . | . . . . . Max Security . | . . . . . Peak Influence 55 | . . . . 55 Initial . | . . . . . Average 4 | . . . . 10 Influence Increases 90 | . . . . 90 Lose Combat Pursuer 90 | . . . . 90 Influence Decreases 40 | . . . . 40 Time Decay 30 | . . . . 30 Lost Part 10 | . . . . 10 Squads Dispatched 3 | . 1 . . 2 Investigation 1 | . 1 . . . Extermination 1 | . . . . 1 Reinforcement 1 | . . . . 1 Assault . | . . . . . Garrison . | . . . . . Intercept . | . . . . . Searches Triggered . | . . . . . Construction Impeded . | . . . . . Haulers Reinforced . | . . . . . Active Scanning Responses . | . . . . . Cargo Convoy Interrupts . | . . . . . Stealth | -11 -10 -10 -7 -5 --------- Run | Yrd Mat Sub Scr Fac Distress Signals 3 | . 3 . . . Communications Jammed . | . . . . . Distress Signals . | . . . . . Times Spotted 18 | . 5 . . 13 Peak Tracking Total 11 | . 3 . . 11 Tactical Retreats 2 | . . . . 2 Traps | -11 -10 -10 -7 -5 ------- Run | Yrd Mat Sub Scr Fac Traps Triggered 1 | . . . . 1 Indirectly . | . . . . . Trap Hack Attempts . | . . . . . Triggered . | . . . . . Disarmed . | . . . . . Reprogrammed . | . . . . . Reused . | . . . . . Traps Extracted . | . . . . . Installed . | . . . . . Triggered . | . . . . . Machines | -11 -10 -10 -7 -5 ---------- Run | Yrd Mat Sub Scr Fac Machines Disabled . | . . . . . Max in Single Turn . | . . . . . Machines Repaired . | . . . . . Machines Dismantled . | . . . . . Machines Sabotaged . | . . . . . Overloaded Fab Kills . | . . . . . Hacking | -11 -10 -10 -7 -5 --------- Run | Yrd Mat Sub Scr Fac Machines Accessed 1 | . . . 1 . Terminals . | . . . . . Fabricators . | . . . . . Repair Stations . | . . . . . Recycling Units . | . . . . . Scanalyzers . | . . . . . Garrison Access . | . . . . . Total Hacks 8 | . . . 8 . Successful 8 | . . . 8 . Failed . | . . . . . Catastrophic . | . . . . . Database Lockouts . | . . . . . Manual . | . . . . . Terminals . | . . . . . Fabricators . | . . . . . Repair Stations . | . . . . . Recycling Units . | . . . . . Scanalyzers . | . . . . . Garrison Access . | . . . . . Terminal Hacks 8 | . . . 8 . Record 8 | . . . 8 . Fabricator Hacks . | . . . . . Repair Station Hacks . | . . . . . Recycling Unit Hacks . | . . . . . Scanalyzer . | . . . . . Garrison Access Hacks . | . . . . . Unauthorized Hacks . | . . . . . Terminals . | . . . . . Fabricators . | . . . . . Repair Stations . | . . . . . Recycling Units . | . . . . . Scanalyzers . | . . . . . Garrison Access . | . . . . . Data Cores Recovered . | . . . . . Used . | . . . . . Hacking Detections . | . . . . . Full Trace Events . | . . . . . Feedback Events . | . . . . . Feedback Blocked . | . . . . . Robot Schematics Acquired . | . . . . . Robots Built . | . . . . . Authchips . | . . . . . Time . | . . . . . Total Robot Build Rating . | . . . . . Part Schematics Acquired . | . . . . . Parts Built . | . . . . . Authchips . | . . . . . Time . | . . . . . Total Part Build Rating . | . . . . . Part Studies Acquired . | . . . . . Parts Repaired . | . . . . . Time . | . . . . . Parts Recycled . | . . . . . Recycled Matter . | . . . . . Retrieved Matter . | . . . . . Retrieved Components . | . . . . . Parts Scanalyzed . | . . . . . Part Schematics Acquired . | . . . . . Parts Damaged . | . . . . . Bothacking | -11 -10 -10 -7 -5 ------------ Run | Yrd Mat Sub Scr Fac Used RIF Installer . | . . . . . Robots Hacked . | . . . . . Non-combat . | . . . . . Combat . | . . . . . Robot Hacks Applied . | . . . . . Relay Couplers Released . | . . . . . Fabnet Peak Effective % . | . . . . . Robots Rewired . | . . . . . Allies Hacked . | . . . . . Hacks Repelled . | . . . . . Allies | -11 -10 -10 -7 -5 -------- Run | Yrd Mat Sub Scr Fac Total Allies . | . . . . . Largest Group . | . . . . . Highest-Rated Group . | . . . . . Highest-Rated Ally . | . . . . . Total Orders . | . . . . . Ally Attacks . | . . . . . Total Damage . | . . . . . Kills . | . . . . . Allies Corrupted . | . . . . . Allies Melted . | . . . . . Intel | -11 -10 -10 -7 -5 ------- Run | Yrd Mat Sub Scr Fac Active Infowar (turns) . | . . . . . Robot Analysis Total . | . . . . . Derelict Logs Recovered . | . . . . . Drone Launches . | . . . . . Drone Recoveries . | . . . . . Exploration | -11 -10 -10 -7 -5 ------------- Run | Yrd Mat Sub Scr Fac Turns Passed 1477 | 86 158 176 825 232 Spaces Moved 1583 | 58 99 133 947 346 Core 95 | 8 . . . 87 Treads 115 | 30 85 . . . Legs . | . . . . . Wheels 20 | 20 . . . . Hover . | . . . . . Flight 1353 | . 14 133 947 259 Fastest Speed 34 | 50 37 37 37 34 Average Speed 81 | 120 142 37 86 59 Slowest Speed 280 | 160 160 37 117 280 Overloaded Moves . | . . . . . Propulsion Burnouts . | . . . . . Robots Hopped . | . . . . . Potential Cave-ins . | . . . . . Cave-ins Triggered . | . . . . . Exploration Rate (%) 23 | 3 38 10 54 10 Regions Visited 4 Branch Regions 2 Pre-discovered Areas . | . . . . . Known Exits Taken . | . . . . . Unknown Exits Taken 4 | 1 1 1 1 . Scrap Searched 2 | . . . 2 . Spaces Dug . | . . . . . Terrain Destroyed . | . . . . . Melee . | . . . . . Projectile . | . . . . . AOE . | . . . . . Terrain Rammed . | . . . . . Walls Destroyed . | . . . . . Machines Disabled . | . . . . . Actions | -11 -10 -10 -7 -5 --------- Run | Yrd Mat Sub Scr Fac Total 1769 | 74 115 259 950 371 Wait 140 | . 5 127 . 8 Move 1579 | 57 98 132 946 346 Hop . | . . . . . Pick Up 13 | 7 5 . . 1 Fast Attach 3 | 2 . . 1 . Attach 9 | 6 . . . 3 Detach 3 | . 1 . . 2 Swap 3 | . 2 . 1 . Drop 7 | 2 3 . 2 . Fire 1 | . . . . 1 Melee . | . . . . . Ram 4 | . . . . 4 Kick . | . . . . . Crush 1 | . 1 . . . Escape Stasis 6 | . . . . 6 Rewire . | . . . . . Trap . | . . . . . Miscellaneous . | . . . . . Route ------- -11/Scrapyard -10/Materials (discovered 2 exits: [*Min] / [*Sub]) -10/Subcaves -7/Scraptown -5/Factory History --------- Turn | Location | Event 9 | -11/Scrapyard | Discovered new exit (range 16) 87 | -11/Scrapyard | Entered Materials 88 | -10/Materials | Met a group of wandering Federalists 152 | -10/Materials | Discovered new exit (range 16) 240 | -10/Materials | Discovered new exit (range 9) 245 | -10/Materials | Entered Subcaves 246 | -10/Subcaves | Continued accompanying wandering Federalists (4) 246 | -10/Subcaves | Approached by a straggling Scientist 318 | -10/Subcaves | Build established: Mutant 416 | -10/Subcaves | Scientist uncovered a shortcut to Scraptown 421 | -10/Subcaves | Entered Scraptown 450 | -7/Scraptown | Visited Red Mages 467 | -7/Scraptown | Visited UFD Registry 474 | -7/Scraptown | Visited The Evicted 484 | -7/Scraptown | Visited Cyclists 490 | -7/Scraptown | Visited Shadow of the Wyrm 499 | -7/Scraptown | Visited Symbiants 621 | -7/Scraptown | Visited Cave Peace 869 | -7/Scraptown | Discovered new exit (range 5) 1246 | -7/Scraptown | Entered Factory 1246 | -5/Factory | Evolved 10 slots: Power x1, Propulsion x2, Utility x6, Weapon x1 1443 | -5/Factory | Core integrity fell below 50% 1459 | -5/Factory | Lost 3 parts (3n) 1471 | -5/Factory | Core integrity fell below 20% 1478 | -5/Factory | Destroyed by H-66 Slayer with Gauss Rifle Last Messages --------------- Field strength at 94. Field strength at 79. Field strength at 69. Field strength at 56. Field strength at 46. Flight Unit destroyed. Field strength at 17. Field strength at 11. Stasis field depleted. U-05 Engineer lays Concrete. Slammed into S-27 Virus. Destabilizing: System corrupted (+2). ALERT: Potential suspicious activity detected, Programmers report to Factory Zone 2J. Penetrated by Slug. Slammed into S-27 Virus. Penetrated by Slug. S-27 Virus destroyed. Slug penetrates H-66 Slayer. Penetrated by Slug. Map ----- +----------------------------------------------------+ | ??????????????????????????????????????????? | | ??????????????????????????????????????????? | | ??????????????????????????????????????????? | | ??????????????????????????????????????????? | | ??????????????????????????????????????????? | | ??????????????????????????????????????????? | | ???????????###########????????????????????? | | ??????????# #?????###########????? | | ??????????# #?????# #????? | | ??????????# #?????# #????? | | ??????????# #?????# #????? | | ??????????# #?????# #????? | | ??????????# #?????# #????? | | ??????????# #?????# [ #????? | | ??????????# #?????# #????? | | ??????????# ####### #????? | | ??????????# # ##+####/###????? | | ??????????# # %* #????? | | ??????????# # [ #????? | | ??????????# + s #????? | | ??????????# # h s###### #????? | | ??????????# # h #????# #????? | | ??????????############ ###??# #????? | | ??????????????# #??# #????? | | ???????""?????# #??# #????? | | ??????"""?????# @ #??# #????? | | ????? "??????# #??######????? | | ????" ???????# #????????????? | | ??? ????????# #????????????? | | ###+########### ######?????##? | | #????# ## | | #??? # | | #??? ""# | | #?? ""# | | #?? ""# | | ####+############+########### #? T# | | # #??????????????????# #? ""# | | # #??????????????????# # ""# | | # """" #??????????????????# # ""# | | # """" #??????????????????# + # | | # """" #??????????????????# # """ # | | # """" #??????????????????# # """ # | | # #??????????????????##### #? """ ? | | # #??????????????????????# #? ? | | # #??????????????????????# #?? """ # | | ##########??????????????????????# #?? """ # | | ????????????????????????????????# #???""" # | | ????????????????????????????????# #??? ??? | | ##?????????????????????########## ##+#?#??? | | #?????????????????????# # #????? | +----------------------------------------------------+ Best States ------------- Heat Dissipation 40 Energy Generation 18 Energy Capacity 310 Matter Stores 300 Matter Capacity 300 Sight Range 16 Terrain Scan Density 10 Evasion (%) 63 Recoil Reduction 2 Item Schematics ----------------- None Robot Schematics ------------------ None Fabricated ------------ Nothing Repaired ---------- Nothing Studied --------- None Alien Tech Used ----------------- None Achievements -------------- Nice Directions, Buddy Challenges ------------ None Game ------ Seed ChromaticRiotChainsword Manual? 0 Play Time 00:17:20 Cumulative 21.3 hours Start 2026.02.12 @ 22:54:57 End 2026.02.12 @ 23:10:19 Sessions 1 Manual Loads 0 Difficulty Rogue Special Mode None Game No. 53 Rogue 53 Adventurer 0 Explorer 0 Win Type - Total 0 Types 0/0/0/0/0/0/0/0/0/0 Lore% 19 Gallery% 25 Achievement% 20 Wizard Run 0 Options --------- Layout 1 ASCII 0 Keyboard 0 Movement Mouse Keybinds 0 Fullscreen 1 Font 24/Smallcaps Map View 50x35 Zoom Use 0% Tactical HUD 0 Map Filters NONE Filters NONE Steam 1 RUN: 44fc02e3-319d-4c73-a08a-2f2d8a0eaead